bitfinex/quotes_BTCUSD_20230906
["timestamp","ask_amount","ask_price","bid_price","bid_amount"]
[1694026865421,2.72546027,25654.0,25652.0,0.02568287]
[1694026866072,2.74946027,25654.0,25652.0,0.02568287]
[1694026866282,2.81828027,25654.0,25652.0,0.02568287]
[1694026866487,2.81810027,25654.0,25652.0,0.02568287]
[1694026866703,0.38664527,25653.0,25652.0,0.02568287]
[1694026866910,3.09894358,25653.0,25652.0,0.02568287]
[1694026867114,3.10218358,25653.0,25652.0,0.02568287]
[1694026867319,3.09756358,25653.0,25652.0,0.02568287]
[1694026867529,3.09738358,25653.0,25652.0,0.02568287]
[1694026867739,3.48060885,25653.0,25652.0,0.02568287]
[1694026867968,3.40542885,25653.0,25652.0,0.02568287]
[1694026868209,3.42942885,25653.0,25652.0,0.02568287]
[1694026868431,3.42942885,25653.0,25652.0,0.96000698]
[1694026868432,0.024,25653.0,25652.0,0.96000698]
[1694026868647,0.024,25653.0,25652.0,1.58501487]
[1694026868857,0.024,25653.0,25652.0,2.36468087]
[1694026869066,0.024,25653.0,25652.0,2.44468087]
[1694026869272,0.024,25653.0,25652.0,2.48468087]
[1694026869483,0.024,25653.0,25652.0,2.64708087]
[1694026869484,0.048,25653.0,25652.0,2.64708087]
[1694026870118,0.048,25653.0,25652.0,2.80316087]
[1694026871176,0.06063081,25653.0,25652.0,2.80316087]
[1694026872480,0.06063081,25653.0,25652.0,2.02349487]
[1694026872698,0.06063081,25653.0,25652.0,0.30176287]
[1694026872910,0.06063081,25653.0,25652.0,0.10568287]
[1694026872911,0.84026581,25653.0,25652.0,0.10568287]
[1694026873340,0.06063081,25653.0,25652.0,0.10568287]
[1694026873568,2.39953581,25653.0,25652.0,0.02568287]
[1694026875556,2.94858108,25653.0,25648.0,0.015]
[1694026875769,2.94858108,25653.0,25643.0,1.6911196]
[1694026875770,3.30355081,25653.0,25650.0,0.02568287]
[1694026875985,3.17917081,25653.0,25650.0,0.02568287]
[1694026876444,3.54602868,25653.0,25650.0,0.02568287]
[1694026876641,0.82987985,25652.0,25650.0,0.02568287]
[1694026876788,3.118784,25651.0,25650.0,0.02568287]
[1694026876963,3.50542927,25651.0,25650.0,0.02568287]
[1694026878194,3.52942927,25651.0,25650.0,0.02568287]
[1694026878651,3.75203476,25651.0,25650.0,0.02568287]
[1694026878854,3.79907476,25651.0,25650.0,0.02568287]
[1694026879123,3.82967476,25651.0,25650.0,0.02568287]
[1694026879328,3.75203476,25651.0,25650.0,0.02568287]
[1694026879832,3.75203476,25651.0,25649.0,0.02568287]
[1694026879833,3.83207476,25651.0,25649.0,0.02568287]
[1694026880055,3.83285476,25651.0,25649.0,0.02568287]
[1694026880227,3.75203476,25651.0,25649.0,0.02568287]
[1694026880421,1.559514,25649.0,25645.0,0.02568287]
[1694026880622,0.38664527,25648.0,25645.0,0.02568287]
[1694026880823,2.339454,25647.0,25645.0,0.02568287]
[1694026881093,3.191752,25647.0,25645.0,0.02568287]
[1694026881296,3.195412,25647.0,25645.0,0.02568287]
[1694026881487,3.9639932,25647.0,25645.0,0.02568287]
[1694026881628,3.9590132,25647.0,25645.0,0.02568287]
[1694026881828,3.8861732,25647.0,25645.0,0.02568287]
[1694026882038,3.9101732,25647.0,25645.0,0.02568287]
[1694026882403,3.54752793,25647.0,25645.0,0.02568287]
[1694026882605,2.76770993,25647.0,25645.0,0.02568287]
[1694026883364,2.76770993,25647.0,25641.0,0.992386]
[1694026883635,2.76770993,25647.0,25645.0,0.02568287]
[1694026883839,2.75009927,25647.0,25645.0,0.02568287]
[1694026883969,2.82989927,25647.0,25645.0,0.02568287]
[1694026884170,2.82863927,25647.0,25645.0,0.02568287]
[1694026884387,2.82875927,25647.0,25645.0,0.02568287]
[1694026884607,0.46026527,25646.0,25645.0,0.02568287]
[1694026884808,3.02892795,25646.0,25645.0,0.02568287]
[1694026885029,2.95596795,25646.0,25645.0,0.02568287]
[1694026885409,1.559658,25647.0,25645.0,0.02568287]
[1694026885621,1.575658,25647.0,25645.0,0.02557376]
[1694026885826,1.559658,25647.0,25645.0,0.02557376]
[1694026886270,0.01286005,25646.0,25645.0,0.02557376]
[1694026886733,0.02186005,25646.0,25645.0,0.02557376]
[1694026887264,0.03786005,25646.0,25645.0,0.02557376]
[1694026887517,0.02186005,25646.0,25645.0,0.02557376]
[1694026888002,0.02886005,25646.0,25645.0,0.02557376]
[1694026888266,0.02886005,25646.0,25645.0,1.58533176]
[1694026889502,0.02886005,25646.0,25645.0,2.77185603]
[1694026889928,0.02886005,25646.0,25645.0,3.33975603]
[1694026890135,0.016,25646.0,25645.0,3.63975603]
[1694026890559,0.779636,25653.0,25652.0,0.02557376]
[1694026890771,1.19144671,25656.0,25654.0,0.02557376]
[1694026890772,0.779548,25656.0,25654.0,0.02557376]
[1694026890984,0.01442624,25659.0,25656.0,0.01489089]
[1694026890985,0.07968,25659.0,25656.0,0.01489089]
[1694026891198,0.87660811,25658.0,25657.0,0.15465811]
[1694026891405,1.65610711,25658.0,25657.0,0.15465811]
[1694026891615,1.65610711,25658.0,25656.0,0.02557376]
[1694026891826,2.43560611,25658.0,25656.0,0.02557376]
[1694026892042,1.65609811,25658.0,25656.0,0.02557376]
[1694026892277,0.23442624,25661.0,25654.0,0.2014]
[1694026892278,0.939422,25661.0,25658.0,0.02557376]
[1694026892495,1.558887,25660.0,25659.0,0.02557376]
[1694026892961,0.26406395,25664.0,25663.0,0.04557376]
[1694026892962,0.06110914,25664.0,25663.0,0.04557376]
[1694026893178,0.779254,25666.0,25665.0,0.02557376]
[1694026893397,0.779254,25666.0,25665.0,0.18023187]
[1694026893631,0.9425294,25666.0,25665.0,0.18023187]
[1694026893852,1.558451,25667.0,25665.0,0.02557376]
[1694026893853,1.558446,25667.0,25665.0,0.02557376]
[1694026894082,1.558446,25667.0,25666.0,0.02557376]
[1694026895190,1.576446,25667.0,25666.0,0.02557376]
[1694026895401,0.018,25667.0,25666.0,0.02557376]
[1694026895608,1.09156483,25667.0,25666.0,0.02557376]
[1694026895825,1.87077483,25667.0,25666.0,0.02557376]
[1694026896039,2.14332341,25667.0,25666.0,0.02557376]
[1694026896286,2.92253341,25667.0,25666.0,0.02557376]
[1694026896501,2.98951341,25667.0,25666.0,0.02557376]
[1694026896708,2.99159341,25667.0,25666.0,0.02557376]
[1694026896917,2.98995341,25667.0,25666.0,0.02557376]
[1694026897126,2.98995341,25667.0,25666.0,0.02757376]
[1694026897127,2.98989341,25667.0,25666.0,0.02757376]
[1694026897346,2.98989341,25667.0,25665.0,0.01489089]
[1694026897347,3.1055101,25667.0,25665.0,0.01489089]
[1694026897560,0.38664527,25666.0,25665.0,0.02557376]
[1694026897767,3.23593354,25666.0,25665.0,0.02557376]
[1694026897973,3.22477354,25666.0,25665.0,0.02557376]
[1694026898195,3.22477354,25666.0,25662.0,0.02557376]
[1694026898196,3.22375354,25666.0,25662.0,0.02557376]
[1694026898424,3.22375354,25666.0,25657.0,0.02]
[1694026898425,0.1624,25664.0,25661.0,0.02557376]
[1694026898635,2.72464127,25663.0,25661.0,0.02557376]
[1694026898882,2.80936127,25663.0,25661.0,0.02557376]
[1694026899098,0.06828,25662.0,25661.0,0.02557376]
[1694026899315,2.79295127,25662.0,25661.0,0.02557376]
[1694026899536,2.79253127,25662.0,25661.0,0.02557376]
[1694026899744,2.79151127,25662.0,25661.0,0.02557376]
[1694026899965,0.779332,25663.0,25662.0,0.02557376]
[1694026900220,0.779319,25664.0,25662.0,0.02557376]
[1694026900424,0.009,25662.0,25661.0,0.02557376]
[1694026900846,0.033,25662.0,25661.0,0.02557376]
[1694026901067,1.7837728,25663.0,25661.0,0.02557376]
[1694026901274,0.0123218,25662.0,25661.0,0.02557376]
[1694026901927,0.0133218,25662.0,25661.0,0.02557376]
[1694026902144,0.27594192,25662.0,25661.0,0.02557376]
[1694026902365,2.61402792,25662.0,25661.0,0.02557376]
[1694026902839,1.83566592,25662.0,25661.0,0.02557376]
[1694026903470,1.83466592,25662.0,25661.0,0.02557376]
[1694026903688,1.84366592,25662.0,25661.0,0.02557376]
[1694026903914,1.84266592,25662.0,25661.0,0.02557376]
[1694026904174,2.20872903,25662.0,25661.0,0.02557376]
[1694026904390,3.4666963,25662.0,25661.0,0.02557376]
[1694026904608,3.4583763,25662.0,25661.0,0.02557376]
[1694026904817,3.4633963,25662.0,25661.0,0.02557376]
[1694026905025,3.4558563,25662.0,25661.0,0.02557376]
[1694026905233,3.4580163,25662.0,25661.0,0.02557376]
[1694026905442,3.4812963,25662.0,25661.0,0.02557376]
[1694026905656,3.4508763,25662.0,25661.0,0.02557376]
[1694026905880,0.0213218,25662.0,25661.0,0.02557376]
[1694026906096,1.5950458,25662.0,25661.0,0.02557376]
[1694026906528,1.6190458,25662.0,25661.0,0.02557376]
[1694026906983,1.5950458,25662.0,25661.0,0.02557376]
[1694026907402,0.8156838,25662.0,25661.0,0.02557376]
[1694026907614,0.8396838,25662.0,25661.0,0.02557376]
[1694026907843,0.8156838,25662.0,25661.0,0.02557376]
[1694026908074,0.0523218,25662.0,25661.0,0.02557376]
[1694026908283,0.0363218,25662.0,25661.0,0.02557376]
[1694026908708,0.0193218,25662.0,25661.0,0.02557376]
[1694026908920,0.0303218,25662.0,25661.0,0.02557376]
[1694026909190,0.0373218,25662.0,25661.0,0.02557376]
[1694026909402,0.0193218,25662.0,25661.0,0.02557376]
[1694026909823,0.0203218,25662.0,25661.0,0.02557376]
[1694026910039,0.7996838,25662.0,25661.0,0.02557376]
[1694026910456,0.7926838,25662.0,25661.0,0.02557376]
[1694026910650,0.7936838,25662.0,25661.0,0.02557376]
[1694026910887,0.0143218,25662.0,25661.0,0.02557376]
[1694026911554,0.0143218,25662.0,25661.0,1.58435776]
[1694026911775,0.01421876,25662.0,25661.0,1.58435776]
[1694026912611,0.01421876,25662.0,25661.0,0.02557376]
[1694026913935,0.79358076,25662.0,25661.0,0.02557376]
[1694026914145,0.01421876,25662.0,25661.0,0.02557376]
[1694026921811,0.01421876,25662.0,25661.0,2.93039503]
[1694026922058,0.01421876,25662.0,25661.0,3.09279503]
[1694026922278,0.002,25662.0,25661.0,3.09279503]
[1694026922494,0.002,25662.0,25661.0,2.31340303]
[1694026922708,0.01449666,25662.0,25661.0,2.31340303]
[1694026923621,1.06955033,25662.0,25661.0,0.02557376]
[1694026923883,1.84891233,25662.0,25661.0,0.02557376]
[1694026924125,0.07560455,25662.0,25661.0,0.02557376]
[1694026924780,0.85496655,25662.0,25661.0,0.02557376]
[1694026926274,1.63432855,25662.0,25661.0,0.02557376]
[1694026927325,0.85496655,25662.0,25661.0,0.02557376]
[1694026927749,0.07560455,25662.0,25661.0,1.58435776]
[1694026927965,0.07560455,25662.0,25661.0,0.02557376]
[1694026929598,0.85496655,25662.0,25661.0,0.02557376]
[1694026930075,0.07560455,25662.0,25661.0,0.02557376]
[1694026930535,0.01449666,25662.0,25661.0,2.36374976]
[1694026930996,0.01449666,25662.0,25661.0,2.75039503]
[1694026932423,0.01449666,25662.0,25661.0,1.97100303]
[1694026934274,0.01449666,25662.0,25661.0,2.45890303]
[1694026934419,0.01449666,25662.0,25661.0,3.40069503]
[1694026935492,0.01449666,25662.0,25661.0,1.43401103]
[1694026935694,0.01449666,25662.0,25661.0,2.21340303]
[1694026935902,0.01449666,25662.0,25661.0,2.99279503]
[1694026936926,0.01449666,25662.0,25661.0,1.43401103]
[1694026937553,0.01449666,25662.0,25661.0,2.21340303]
[1694026938288,0.01449666,25662.0,25661.0,2.99279503]
[1694026938524,0.01449666,25662.0,25661.0,3.38069503]
[1694026939304,0.01349666,25662.0,25661.0,3.38069503]
[1694026939533,0.01549666,25662.0,25661.0,3.38169503]
[1694026939688,0.01449666,25662.0,25661.0,3.38169503]
[1694026940093,0.01649666,25662.0,25661.0,3.38469503]
[1694026944281,0.01649666,25662.0,25661.0,2.60530303]
[1694026944494,0.01649666,25662.0,25661.0,2.58530303]
[1694026944703,0.01649666,25662.0,25661.0,3.36469503]
[1694026946158,0.01649666,25662.0,25661.0,3.82769503]
[1694026946966,0.01649666,25662.0,25661.0,3.86673309]
[1694026946967,0.004,25662.0,25661.0,3.86673309]
[1694026947629,0.002,25662.0,25661.0,3.86573309]
[1694026947838,0.06110798,25667.0,25666.0,0.51347376]
[1694026948040,0.06110798,25667.0,25666.0,4.33414114]
[1694026948250,0.06110798,25667.0,25666.0,4.17948303]
[1694026948453,0.07227236,25667.0,25666.0,4.17948303]
[1694026949069,0.07427236,25667.0,25666.0,4.19448303]
[1694026949480,0.07227236,25667.0,25666.0,4.17948303]
[1694026949684,0.07427236,25667.0,25666.0,4.35246203]
[1694026950108,0.07427236,25667.0,25666.0,4.37546203]
[1694026950525,0.07627236,25667.0,25666.0,4.37346203]
[1694026951962,0.06510798,25667.0,25666.0,4.37346203]
[1694026954008,0.06510798,25667.0,25666.0,0.84859803]
[1694026954226,0.30669046,25667.0,25666.0,1.46543903]
[1694026955533,0.06510798,25667.0,25666.0,1.46543903]
[1694026955740,0.06510798,25667.0,25666.0,2.24468003]
[1694026955960,0.06510798,25667.0,25666.0,3.43182103]
[1694026956181,0.06510798,25667.0,25666.0,3.59422103]
[1694026958296,0.06510798,25667.0,25666.0,3.57422103]
[1694026960641,0.004,25667.0,25666.0,3.57422103]
[1694026962139,0.004,25667.0,25666.0,4.01722103]
[1694026962984,0.004,25667.0,25666.0,3.97642103]
[1694026963195,0.38807605,25672.0,25671.0,0.06557376]
[1694026963398,0.22367605,25672.0,25671.0,3.06574414]
[1694026963608,0.22367605,25672.0,25671.0,2.91108603]
[1694026965492,0.1644,25674.0,25673.0,0.02557376]
[1694026965705,0.42566074,25674.0,25673.0,0.92620176]
[1694026966346,0.42566074,25674.0,25673.0,0.96620176]
[1694026966598,0.42566074,25674.0,25673.0,2.93090303]
[1694026966599,0.1644,25674.0,25673.0,2.93090303]
[1694026966814,0.0197,25676.0,25673.0,2.93090303]
[1694026966815,0.1851,25676.0,25675.0,0.06557376]
[1694026967028,0.47139667,25676.0,25675.0,0.96614076]
[1694026967450,0.47139667,25676.0,25675.0,1.74510776]
[1694026967664,0.47139667,25676.0,25675.0,1.90105376]
[1694026968107,0.48639667,25676.0,25675.0,1.90205376]
[1694026968528,0.48639667,25676.0,25675.0,1.90305376]
[1694026968529,0.50039667,25676.0,25675.0,1.90305376]
[1694026970253,0.50039667,25676.0,25675.0,2.68202076]
[1694026970492,0.50039667,25676.0,25675.0,1.90305376]
[1694026976258,0.2141,25676.0,25675.0,3.06866603]
[1694026976905,0.46345108,25676.0,25675.0,3.06866603]
[1694026979543,0.29805108,25676.0,25675.0,3.08866603]
[1694026979960,0.0487,25676.0,25675.0,3.08866603]
[1694026980385,0.0487,25676.0,25675.0,3.49656603]
[1694026981050,0.0337,25676.0,25675.0,3.49556603]
[1694026981255,0.0337,25676.0,25675.0,3.49756603]
[1694026981636,0.0197,25676.0,25675.0,3.49456603]
[1694026981988,0.0197,25676.0,25675.0,3.49856603]
[1694026982195,0.0197,25676.0,25675.0,3.49456603]
[1694026982617,0.0217,25676.0,25675.0,3.51956603]
[1694026983021,0.0237,25676.0,25675.0,3.54356603]
[1694026985971,0.0237,25676.0,25675.0,3.84356603]
[1694026986168,0.0237,25676.0,25675.0,3.86356603]
[1694026989468,0.0237,25676.0,25675.0,3.88656603]
[1694026989699,0.0237,25676.0,25675.0,3.98656603]
[1694026990880,0.0217,25676.0,25675.0,3.43166603]
[1694026991089,0.31786636,25676.0,25675.0,3.33506603]
[1694026991298,0.31786636,25676.0,25675.0,1.75713203]
[1694026991518,0.0227,25676.0,25675.0,1.78945376]
[1694026991736,2.58219594,25676.0,25675.0,0.07557376]
[1694026991955,3.35048121,25676.0,25667.0,0.064993]
[1694026992168,3.35048121,25676.0,25668.0,0.04]
[1694026992169,0.1216,25670.0,25668.0,0.04]
[1694026992381,0.77913,25670.0,25669.0,0.04]
[1694026992567,2.33739,25670.0,25668.0,0.04]
[1694026992805,2.33739,25670.0,25667.0,0.220986]
[1694026992992,2.33739,25670.0,25668.0,0.04]
[1694026992993,1.55826,25670.0,25668.0,0.04]
[1694026993655,1.56126,25670.0,25668.0,0.04]
[1694026993867,1.558222,25671.0,25668.0,0.04]
[1694026994067,0.900676,25672.0,25668.0,0.819177]
[1694026994068,0.005,25670.0,25668.0,0.819177]
[1694026995099,0.008,25670.0,25668.0,0.819177]
[1694026995308,0.29302046,25670.0,25668.0,0.819177]
[1694026995513,0.267784,25669.0,25668.0,0.04]
[1694026995730,0.267784,25669.0,25668.0,0.041]
[1694026996166,0.267784,25669.0,25668.0,0.04]
[1694026996584,0.267784,25669.0,25668.0,0.062]
[1694026996799,0.267784,25669.0,25668.0,0.102]
[1694026996988,0.267784,25669.0,25668.0,0.08]
[1694026997196,0.267784,25669.0,25668.0,0.103]
[1694026997408,0.268784,25669.0,25668.0,0.116]
[1694026998293,0.268784,25669.0,25668.0,0.093]
[1694026998508,0.269784,25669.0,25668.0,0.107]
[1694026998926,0.267784,25669.0,25668.0,0.08]
[1694026999332,0.268784,25669.0,25668.0,0.093]
[1694026999577,2.728831,25669.0,25668.0,0.067]
[1694026999803,2.727831,25669.0,25668.0,0.054]
[1694027000028,2.728831,25669.0,25668.0,0.027]
[1694027003476,1.828082,25669.0,25668.0,0.027]
[1694027004855,2.607231,25669.0,25668.0,0.027]
[1694027005267,3.101779,25669.0,25668.0,0.027]
[1694027006104,3.101779,25669.0,25668.0,0.014]
[1694027006105,3.100779,25669.0,25668.0,0.014]
[1694027006533,3.168519,25669.0,25668.0,0.014]
[1694027006740,3.167139,25669.0,25668.0,0.014]
[1694027006946,3.105779,25669.0,25668.0,0.014]
[1694027007598,1.832082,25669.0,25668.0,0.014]
[1694027008225,1.826082,25669.0,25667.0,0.024993]
[1694027008428,2.610231,25669.0,25667.0,0.024993]
[1694027009237,2.605231,25669.0,25667.0,0.024993]
[1694027009372,2.613231,25669.0,25667.0,0.024993]
[1694027009826,2.610231,25669.0,25667.0,0.024993]
[1694027010030,2.613231,25669.0,25667.0,0.024993]
[1694027010379,0.24413978,25668.0,25667.0,0.024993]
[1694027010581,3.05231136,25668.0,25667.0,0.024993]
[1694027011944,3.05231136,25668.0,25667.0,0.028993]
[1694027012576,3.05231136,25668.0,25667.0,0.034993]
[1694027013870,3.05231136,25668.0,25667.0,0.028993]
[1694027014252,3.05531136,25668.0,25667.0,0.028993]
[1694027014456,3.05231136,25668.0,25667.0,0.028993]
[1694027014870,1.55836,25668.0,25667.0,0.028993]
[1694027015285,1.55836,25668.0,25667.0,0.024993]
[1694027015490,1.56336,25668.0,25667.0,0.024993]
[1694027015898,1.56136,25668.0,25667.0,0.024993]
[1694027016101,1.55836,25668.0,25667.0,0.024993]
[1694027016341,1.55836,25668.0,25667.0,0.028993]
[1694027016551,1.55836,25668.0,25667.0,0.034993]
[1694027018969,2.33754,25668.0,25667.0,0.034993]
[1694027019587,1.02673091,25667.0,25663.0,0.24275402]
[1694027019800,1.02673091,25667.0,25664.0,0.38664527]
[1694027020218,1.80595991,25667.0,25664.0,0.38664527]
[1694027020428,1.80595991,25667.0,25663.0,0.24275402]
[1694027020429,2.58518891,25667.0,25663.0,0.24275402]
[1694027020636,2.58518891,25667.0,25663.0,0.62939929]
[1694027020844,2.58518891,25667.0,25663.0,0.39556309]
[1694027021087,2.58718891,25667.0,25664.0,0.014]
[1694027021304,1.80795991,25667.0,25664.0,0.014]
[1694027021721,1.80695991,25667.0,25663.0,0.791319]
[1694027021926,1.80695991,25667.0,25663.0,1.570638]
[1694027022134,0.1734,25668.0,25663.0,2.45957]
[1694027022372,1.06226999,25668.0,25664.0,0.38664527]
[1694027022552,1.84145999,25668.0,25664.0,1.32059338]
[1694027022792,1.84145999,25668.0,25664.0,1.17793527]
[1694027022793,0.001,25667.0,25664.0,1.17793527]
[1694027023207,0.002,25667.0,25664.0,1.17793527]
[1694027023390,0.001,25667.0,25664.0,1.56737645]
[1694027023541,0.001,25667.0,25664.0,1.57237645]
[1694027023954,1.06226999,25668.0,25664.0,1.55537645]
[1694027024154,0.001,25667.0,25664.0,1.56937645]
[1694027024375,0.001,25667.0,25664.0,1.57337645]
[1694027024599,0.26572878,25667.0,25664.0,1.576602]
[1694027024977,0.26572878,25667.0,25664.0,1.572602]
[1694027025363,0.26672878,25667.0,25664.0,1.585602]
[1694027025766,0.26672878,25667.0,25664.0,1.19575737]
[1694027025967,0.26672878,25667.0,25664.0,1.585602]
[1694027027182,0.25426988,25666.0,25664.0,1.571602]
[1694027027984,0.25426988,25666.0,25664.0,1.558602]
[1694027028320,0.25626988,25666.0,25664.0,1.579602]
[1694027029342,0.25826988,25666.0,25664.0,1.600602]
[1694027029544,0.25826988,25666.0,25664.0,0.821301]
[1694027030253,0.25826988,25666.0,25664.0,0.042]
[1694027030658,0.27103079,25665.0,25664.0,0.042]
[1694027030930,0.27103079,25665.0,25663.0,1.558638]
[1694027031142,1.05030479,25665.0,25662.0,0.156009]
[1694027031347,1.05030479,25665.0,25662.0,0.54265427]
[1694027031348,1.82957879,25665.0,25662.0,0.54265427]
[1694027031560,1.05030479,25665.0,25662.0,1.32201127]
[1694027031765,1.05230479,25665.0,25664.0,0.013]
[1694027032171,0.27303079,25665.0,25662.0,1.558708]
[1694027032369,0.27303079,25665.0,25661.0,1.73172606]
[1694027032630,1.05231079,25665.0,25662.0,1.079359]
[1694027032802,1.05531079,25665.0,25664.0,0.004]
[1694027033003,1.05231079,25665.0,25662.0,1.079359]
[1694027033205,0.27518121,25664.0,25662.0,1.083359]
[1694027033407,0.27518121,25664.0,25662.0,1.085359]
[1694027033605,0.27518121,25664.0,25662.0,1.081359]
[1694027034052,0.27518121,25664.0,25662.0,1.079359]
[1694027034884,0.28018121,25664.0,25662.0,0.306]
[1694027035093,1.05948321,25664.0,25662.0,0.306]
[1694027035710,1.05948321,25664.0,25661.0,1.52625904]
[1694027035925,0.29593054,25663.0,25661.0,1.52625904]
[1694027037024,0.29593054,25663.0,25661.0,2.338162]
[1694027037400,0.29893054,25663.0,25661.0,2.338162]
[1694027037650,0.30193054,25663.0,25661.0,2.338162]
[1694027037837,0.30193054,25663.0,25661.0,3.13270727]
[1694027038195,0.30193054,25663.0,25661.0,3.13271427]
[1694027038413,0.006,25663.0,25661.0,3.13271427]
[1694027039409,0.006,25663.0,25661.0,2.35332927]
[1694027039774,0.006,25663.0,25661.0,3.13272127]
[1694027042161,0.006,25663.0,25661.0,2.72482127]
[1694027042358,0.006,25663.0,25661.0,2.338176]
[1694027043279,0.006,25663.0,25661.0,2.459776]
[1694027043488,0.006,25663.0,25661.0,2.84642127]
[1694027043700,0.006,25663.0,25662.0,0.1216]
[1694027043915,0.006,25663.0,25662.0,2.459686]
[1694027044332,0.006,25663.0,25662.0,2.338086]
[1694027045993,0.2270831,25664.0,25662.0,2.338086]
[1694027046226,0.006,25663.0,25662.0,2.338086]
[1694027046825,0.003,25663.0,25662.0,2.338086]
[1694027047043,0.25475678,25663.0,25662.0,2.338086]
[1694027047269,0.25475678,25663.0,25661.0,1.558744]
[1694027047475,0.25475678,25663.0,25662.0,1.558724]
[1694027047686,0.25475678,25663.0,25662.0,2.338086]
[1694027048515,0.25475678,25663.0,25662.0,1.558724]
[1694027048736,0.25475678,25663.0,25660.0,0.18733677]
[1694027048737,0.02,25662.0,25660.0,0.18733677]
[1694027048958,0.02,25662.0,25656.0,1.55905]
[1694027048959,1.93222115,25661.0,25656.0,1.55905]
[1694027049168,0.37343715,25660.0,25655.0,1.559117]
[1694027049381,0.779468,25659.0,25655.0,2.338678]
[1694027049598,1.558936,25659.0,25655.0,1.559117]
[1694027049813,1.65167086,25659.0,25655.0,1.559117]
[1694027050026,1.65167086,25659.0,25655.0,1.715165]
[1694027050241,2.72374115,25659.0,25655.0,1.715165]
[1694027050439,2.72374115,25659.0,25655.0,2.49474]
[1694027050440,1.17480515,25659.0,25655.0,2.49474]
[1694027050659,0.25623486,25659.0,25655.0,1.715182]
[1694027051077,0.26723486,25659.0,25655.0,2.494757]
[1694027051558,0.1745,25659.0,25655.0,2.494757]
[1694027051777,0.40533133,25659.0,25655.0,2.494757]
[1694027052866,0.40533133,25659.0,25655.0,2.494773]
[1694027054041,0.40533133,25659.0,25655.0,1.55915]
[1694027054244,0.40533133,25659.0,25655.0,2.338725]
[1694027054445,0.1745,25659.0,25655.0,2.49338311]
[1694027054600,0.1745,25659.0,25656.0,0.1216]
[1694027054804,0.1745,25659.0,25657.0,2.338542]
[1694027055891,0.29194864,25658.0,25656.0,1.559055]
[1694027056270,0.29194864,25658.0,25656.0,1.55907]
[1694027056502,0.29194864,25658.0,25655.0,1.559125]
[1694027056503,1.85092064,25658.0,25655.0,1.559125]
[1694027056701,2.00482064,25658.0,25655.0,1.559125]
[1694027057196,2.00582064,25658.0,25655.0,1.559125]
[1694027057372,1.22633164,25658.0,25655.0,1.559125]
[1694027058460,1.22533164,25658.0,25655.0,1.559125]
[1694027058664,1.22533164,25658.0,25654.0,1.58998679]
[1694027058665,2.493361,25658.0,25654.0,1.58998679]
[1694027058884,0.28485915,25657.0,25654.0,1.58998679]
[1694027059087,0.779544,25656.0,25654.0,0.81039779]
[1694027059308,0.779544,25656.0,25654.0,0.03081579]
[1694027059463,0.02,25654.0,25650.0,1.559422]
[1694027059665,0.799641,25653.0,25649.0,0.779755]
[1694027059867,1.742482,25653.0,25649.0,1.559497]
[1694027060526,0.02,25652.0,25649.0,1.559497]
[1694027060842,1.579354,25652.0,25648.0,2.339323]
[1694027061053,1.579354,25652.0,25649.0,0.779755]
[1694027061054,1.742554,25652.0,25649.0,0.779755]
[1694027061259,1.742554,25652.0,25649.0,1.559512]
[1694027061513,0.1832,25652.0,25649.0,2.339269]
[1694027061732,0.1832,25652.0,25650.0,0.001]
[1694027061930,0.1832,25652.0,25651.0,2.339088]
[1694027062348,0.18224943,25652.0,25651.0,2.339088]
[1694027062554,0.18824943,25652.0,25651.0,2.339088]
[1694027062767,0.18524943,25652.0,25651.0,2.339088]
[1694027062939,0.18524943,25652.0,25651.0,1.560392]
[1694027063360,0.18824943,25652.0,25651.0,1.561392]
[1694027064134,0.18824943,25652.0,25651.0,2.341088]
[1694027064562,0.18824943,25652.0,25651.0,1.561392]
[1694027064739,0.02504943,25652.0,25651.0,1.561392]
[1694027065037,0.02504943,25652.0,25651.0,2.341088]
[1694027065237,0.02504943,25652.0,25651.0,1.561392]
[1694027067295,0.02504943,25652.0,25651.0,0.002]
[1694027067516,2.72077748,25652.0,25651.0,0.002]
[1694027068612,2.60275031,25652.0,25651.0,0.002]
[1694027073504,2.59975031,25652.0,25651.0,0.001]
[1694027073710,2.60075031,25652.0,25651.0,0.002]
[1694027073919,1.82108431,25652.0,25651.0,0.002]
[1694027074153,0.80271543,25652.0,25651.0,0.002]
[1694027074345,0.80271543,25652.0,25651.0,0.001]
[1694027074346,0.79971543,25652.0,25651.0,0.001]
[1694027074749,0.80071543,25652.0,25651.0,0.002]
[1694027074952,0.79871543,25652.0,25650.0,1.559432]
[1694027075302,0.03004943,25652.0,25651.0,0.001]
[1694027075511,0.02004943,25652.0,25651.0,0.001]
[1694027075725,0.02004943,25652.0,25650.0,0.779714]
[1694027075726,0.79871543,25652.0,25650.0,0.779714]
[1694027075924,0.01904943,25651.0,25650.0,0.779714]
[1694027076325,0.01904943,25651.0,25649.0,1.559482]
[1694027076547,0.01904943,25650.0,25649.0,1.559482]
[1694027077776,0.01904943,25650.0,25649.0,2.339239]
[1694027079212,0.02104943,25650.0,25649.0,2.341239]
[1694027080004,0.02104943,25650.0,25649.0,1.561482]
[1694027081585,2.36023043,25650.0,25649.0,0.002]
[1694027081793,2.7581763,25650.0,25649.0,0.002]
[1694027082017,3.06113216,25650.0,25649.0,0.002]
[1694027082221,2.78478629,25650.0,25649.0,0.002]
[1694027082427,2.78378629,25650.0,25649.0,0.001]
[1694027082629,0.01904943,25646.0,25645.0,1.559747]
[1694027083283,0.01904943,25646.0,25645.0,0.779871]
[1694027083695,0.01904943,25646.0,25645.0,1.55975]
[1694027084721,0.01904943,25646.0,25645.0,2.461229]
[1694027084935,0.01904943,25648.0,25645.0,3.27877427]
[1694027085140,0.001,25646.0,25645.0,2.86483193]
[1694027085345,0.001,25646.0,25645.0,2.98643193]
[1694027085767,0.002,25646.0,25645.0,2.98843193]
[1694027085977,0.001,25646.0,25645.0,2.773529]
[1694027086183,0.02104943,25648.0,25645.0,2.770529]
[1694027086395,0.02104943,25648.0,25646.0,0.1216]
[1694027086665,0.02104943,25648.0,25647.0,1.559636]
[1694027087109,0.02104943,25648.0,25647.0,2.339454]
[1694027087729,0.01904943,25648.0,25647.0,2.339454]
[1694027088336,0.02204943,25648.0,25647.0,2.342454]
[1694027088747,0.02504943,25648.0,25647.0,2.343454]
[1694027091123,0.006,25648.0,25647.0,3.13799927]
[1694027091339,0.006,25648.0,25647.0,4.37036908]